bitfinex/quotes_SOLUSD_20241009
["timestamp","ask_amount","ask_price","bid_price","bid_amount"]
[1728479571985,7.86741703,141.35,141.28,17.82039]
[1728479572187,7.0779,141.29,141.26,24.027864]
[1728479573286,7.0791,141.26,141.22,94.7828]
[1728479573472,7.0791,141.27,141.22,94.7825]
[1728479573676,17.6934,141.3,141.22,87.7018]
[1728479574284,7.0792,141.26,141.22,24.7828]
[1728479574460,1.41671703,141.29,141.22,94.7828]
[1728479574774,7.0783,141.28,141.24,7.0798]
[1728479575002,7.0786,141.27,141.23,7.0805]
[1728479575176,7.0783,141.28,141.24,7.0799]
[1728479575379,8.49421703,141.3,141.26,7.0791]
[1728479575584,1.41671703,141.29,141.22,114.027864]
[1728479575800,7.0791,141.26,141.22,121.108564]
[1728479576102,7.0788,141.27,141.22,121.108564]
[1728479576271,7.0792,141.26,141.22,51.108564]
[1728479576476,17.10911703,141.29,141.22,24.027864]
[1728479576686,7.079,141.27,141.23,7.0806]
[1728479577173,7.079,141.27,141.24,23.902374]
[1728479577366,15.6924,141.29,141.24,23.902374]
[1728479577575,7.0783,141.28,141.24,32.39767057]
[1728479577795,7.0778,141.29,141.24,32.39767057]
[1728479577980,7.0778,141.29,141.25,7.0794]
[1728479578187,7.0772,141.3,141.26,8.49447677]
[1728479578878,7.0772,141.3,141.26,7.079]
[1728479579388,7.0772,141.3,141.26,30.981074]
[1728479579567,1.41671703,141.32,141.26,23.902374]
[1728479579988,7.0781,141.28,141.26,23.902374]
[1728479580392,7.0781,141.28,141.24,7.20509]
[1728479580695,17.6918,141.31,141.23,44.027864]
[1728479580897,7.0784,141.28,141.24,7.0801]
[1728479581189,7.0784,141.28,141.25,23.902374]
[1728479581509,1.41671703,141.32,141.25,23.902374]
[1728479581671,7.0772,141.3,141.26,8.49440656]
[1728479581976,1.41671703,141.34,141.29,7.0775]
[1728479582173,7.0759,141.33,141.3,1.41510295]
[1728479582373,7.0759,141.33,141.29,7.0775]
[1728479582374,7.0761,141.32,141.28,24.773]
[1728479582797,7.0747,141.35,141.31,30.853384]
[1728479583100,6.1911,141.38,141.31,23.902374]
[1728479583307,7.0746,141.35,141.31,30.978774]
[1728479583601,7.074,141.37,141.33,30.977974]
[1728479583766,7.074,141.37,141.34,1.4146964]
[1728479584170,32.7833,141.4,141.33,23.902374]
[1728479584398,7.0729,141.39,141.35,23.776884]
[1728479584608,7.0729,141.39,141.36,1.41452279]
[1728479584898,15.1022,141.4,141.36,1.41452279]
[1728479584899,6.9814656,141.41,141.37,1.41452397]
[1728479585079,6.9814656,141.41,141.36,24.7584]
[1728479585401,6.9814656,141.41,141.37,8.48781269]
[1728479585402,7.9065656,141.41,141.37,8.48781269]
[1728479585583,7.0722,141.4,141.37,23.902374]
[1728479586278,0.8349656,141.41,141.37,30.975774]
[1728479586279,7.9065656,141.41,141.37,30.975774]
[1728479586597,7.9065656,141.41,141.37,23.902374]
[1728479586778,0.8349656,141.41,141.34,0.12549]
[1728479586984,0.8349656,141.41,141.33,17.6883]
[1728479587193,7.0731,141.38,141.34,7.0749]
[1728479587502,7.0727,141.39,141.34,7.0749]
[1728479587887,7.0732,141.38,141.33,17.6883]
[1728479588090,2.25168263,141.41,141.33,17.6883]
[1728479588403,17.6807,141.4,141.33,7.0755]
[1728479588691,7.0737,141.37,141.33,77.0755]
[1728479588900,2.25168263,141.41,141.34,1.41461062]
[1728479589074,7.0727,141.39,141.35,7.0745]
[1728479589487,7.0732,141.38,141.34,24.7625]
[1728479589698,7.0732,141.38,141.35,23.776884]
[1728479590076,0.8349656,141.41,141.37,23.776884]
[1728479590275,7.0722,141.4,141.37,23.776884]
[1728479590494,7.9066656,141.41,141.37,23.776884]
[1728479590704,0.8349656,141.41,141.37,32.26448254]
[1728479591082,7.9066656,141.41,141.37,30.850184]
[1728479591286,7.9066656,141.41,141.37,23.776884]
[1728479591496,7.9066656,141.41,141.37,30.850384]
[1728479592904,0.8349656,141.41,141.36,20.12549]
[1728479593093,0.8349656,141.41,141.35,44.027864]
[1728479593435,7.0737,141.37,141.34,20.0]
[1728479594204,2.25168263,141.41,141.33,70.0]
[1728479594388,0.8349656,141.41,141.33,70.0]
[1728479594592,2.25168263,141.41,141.31,70.0]
[1728479594793,7.0749,141.35,141.31,77.0762]
[1728479595102,7.0743,141.36,141.31,77.0762]
[1728479595399,7.0743,141.36,141.32,7.0759]
[1728479595779,7.0731,141.38,141.34,7.0747]
[1728479596014,1.41671703,141.4,141.32,87.6896]
[1728479596189,7.0736,141.37,141.33,7.0754]
[1728479596387,1.41671703,141.4,141.32,87.6896]
[1728479596584,7.0738,141.37,141.33,7.0754]
[1728479597000,7.0738,141.37,141.34,23.902374]
[1728479597414,1.41671703,141.4,141.3,70.0]
[1728479597415,16.4128,141.38,141.3,70.0]
[1728479597620,7.0762,141.32,141.28,7.0781]
[1728479597794,17.6869,141.35,141.27,70.0]
[1728479597996,7.0756,141.33,141.29,7.0775]
[1728479598191,7.0756,141.33,141.28,24.7729]
[1728479598399,7.0762,141.32,141.28,24.7729]
[1728479598708,7.0752,141.34,141.3,7.077]
[1728479599321,1.41671703,141.37,141.3,23.902374]
[1728479599613,7.0758,141.33,141.3,0.12549]
[1728479600002,17.6861,141.36,141.3,0.12549]
[1728479600207,7.0761,141.33,141.29,23.776884]
[1728479600405,1.41671703,141.35,141.29,23.776884]
[1728479600621,7.0757,141.33,141.29,30.854284]
[1728479600795,7.0765,141.32,141.29,23.776884]
[1728479601001,7.0754,141.34,141.3,1.41516048]
[1728479601725,7.0754,141.34,141.3,7.077]
[1728479602233,19.10131703,141.37,141.3,0.12549]
[1728479602405,7.0756,141.33,141.3,0.12549]
[1728479602908,7.0752,141.34,141.3,7.32808]
[1728479604202,7.0756,141.33,141.3,0.25098]
[1728479604604,7.0753,141.34,141.3,7.32808]
[1728479605605,7.0759,141.33,141.29,30.854384]
[1728479606133,7.0762,141.32,141.29,23.776884]
[1728479606605,7.0769,141.31,141.28,17.82049]
[1728479606926,7.0769,141.31,141.28,24.7731]
[1728479607435,7.0763,141.32,141.29,1.41521585]
[1728479608026,7.0753,141.34,141.3,7.077]
[1728479608262,1.41671703,141.37,141.31,7.0764]
[1728479608434,7.0748,141.35,141.32,30.852984]
[1728479608807,35.51331703,141.38,141.32,0.12549]
[1728479609007,7.0743,141.36,141.32,7.20149]
[1728479609828,7.0741,141.36,141.32,24.89119]
[1728479610127,1.41671703,141.37,141.32,0.12549]
[1728479610330,7.075,141.35,141.32,0.12549]
[1728479611228,7.0756,141.33,141.31,23.776884]
[1728479611418,7.0766,141.31,141.27,77.0783]
[1728479611619,7.0766,141.31,141.28,7.0781]
[1728479611818,1.41671703,141.34,141.26,23.7151]
[1728479612071,7.0776,141.29,141.26,24.7764]
[1728479612321,16.4128,141.38,141.23,94.7816]
[1728479612322,7.0788,141.27,141.23,94.7816]
[1728479612529,7.0788,141.27,141.23,24.7816]
[1728479612905,7.0788,141.27,141.21,70.0]
[1728479612906,7.0794,141.26,141.21,70.0]
[1728479613111,7.0802,141.24,141.2,33.8572]
[1728479613332,17.6947,141.29,141.2,33.8572]
[1728479613333,7.0798,141.25,141.21,7.0816]
[1728479614611,7.0798,141.25,141.22,23.902374]
[1728479615309,1.41671703,141.3,141.23,8.49604818]
[1728479615519,18.05811703,141.31,141.24,1.41568627]
[1728479615726,7.0777,141.29,141.24,8.49528627]
[1728479615905,18.05811703,141.31,141.24,8.49528627]
[1728479616106,7.0787,141.27,141.24,23.902374]
[1728479616532,19.11021703,141.3,141.21,7.0812]
[1728479616735,7.0799,141.25,141.22,23.902374]
[1728479616924,7.0795,141.26,141.22,30.983474]
[1728479617114,7.0795,141.26,141.22,23.902374]
[1728479617324,7.0798,141.25,141.22,23.902374]
[1728479617523,19.11021703,141.3,141.22,23.902374]
[1728479617925,19.11021703,141.3,141.23,17.7013]
[1728479618107,18.05811703,141.31,141.24,1.4156409]
[1728479618617,7.0779,141.29,141.25,7.0795]
[1728479618835,18.05811703,141.31,141.24,24.027864]
[1728479619445,35.75011703,141.31,141.24,24.027864]
[1728479619738,7.0782,141.28,141.24,31.107964]
[1728479619943,7.0782,141.28,141.24,24.027864]
[1728479621423,7.0782,141.28,141.24,31.107864]
[1728479621837,7.0786,141.27,141.24,24.027864]
[1728479622845,7.0786,141.27,141.24,23.902374]
[1728479623038,17.6942,141.29,141.2,17.7047]
[1728479623269,17.6942,141.29,141.21,97.0812]
[1728479623270,7.0799,141.25,141.21,97.0812]
[1728479623568,1.41671703,141.28,141.22,7.081]
[1728479623569,7.0792,141.26,141.22,7.081]
[1728479624552,7.0792,141.26,141.23,7.0806]
[1728479625047,7.0787,141.27,141.23,7.0806]
[1728479626319,1.41671703,141.28,141.22,41.730564]
[1728479626522,7.0794,141.26,141.22,48.811564]
[1728479627133,7.0794,141.26,141.22,41.730564]
[1728479627317,7.0794,141.26,141.23,7.0806]
[1728479627721,7.0794,141.26,141.22,48.811564]
[1728479627944,7.0796,141.25,141.22,41.605074]
[1728479628134,7.0796,141.25,141.22,23.902374]
[1728479628850,17.6968,141.27,141.19,17.7054]
[1728479629033,7.0807,141.23,141.19,24.7877]
[1728479630327,7.0807,141.23,141.2,23.902374]
[1728479630948,7.0807,141.23,141.19,24.7877]
[1728479631347,7.0807,141.23,141.2,1.4161024]
[1728479631654,7.0802,141.24,141.2,8.4981024]
[1728479632152,7.0802,141.24,141.2,7.082]
[1728479632338,7.0802,141.24,141.21,1.41604041]
[1728479632737,7.0829,141.19,141.15,7.0843]
[1728479632962,1.41671703,141.23,141.13,70.0]
[1728479633248,7.0831,141.18,141.14,7.0848]
[1728479633455,1.41671703,141.23,141.13,87.7131]
[1728479633641,7.0836,141.17,141.13,94.7986]
[1728479634369,7.0832,141.18,141.14,7.0851]
[1728479634650,17.7042,141.21,141.13,87.7131]
[1728479634862,7.0829,141.19,141.15,7.0846]
[1728479635236,7.0831,141.18,141.14,31.112764]
[1728479635553,7.0831,141.18,141.14,30.861784]
[1728479637464,7.0815,141.22,141.17,0.12549]
[1728479637652,7.0821,141.21,141.17,17.83439]
[1728479637835,7.0823,141.2,141.17,17.83439]
[1728479638030,7.0831,141.18,141.14,17.7127]
[1728479638450,7.0827,141.19,141.15,7.0845]
[1728479638758,1.41671703,141.21,141.14,17.7127]
[1728479638759,7.0832,141.18,141.14,24.7977]
[1728479639638,7.0832,141.18,141.15,23.902374]
[1728479640060,7.0838,141.17,141.14,17.7127]
[1728479641143,7.0833,141.18,141.14,24.7978]
[1728479641456,1.41671703,141.21,141.11,6.6476]
[1728479641651,7.0849,141.15,141.12,20.0]
[1728479641858,7.0849,141.15,141.11,24.8019]
[1728479642163,33.0348,141.16,141.08,24.8075]
[1728479642337,1.41671703,141.15,141.09,7.0876]
[1728479642534,1.41671703,141.15,141.1,1.4170838]
[1728479642933,1.41671703,141.15,141.09,7.0876]
[1728479643457,7.0857,141.13,141.09,7.0876]
[1728479643653,7.0857,141.13,141.07,70.0]
[1728479643654,7.0867,141.11,141.07,7.0885]
[1728479643962,1.41671703,141.13,141.05,24.813]
[1728479644165,1.41671703,141.13,141.05,17.7238]
[1728479644369,7.0881,141.08,141.05,17.7238]
[1728479644740,1.41671703,141.13,141.03,7.0905]
[1728479644741,17.7158,141.12,141.03,7.0905]
[1728479644942,17.7158,141.12,141.02,87.7271]
[1728479644943,7.0895,141.06,141.02,17.7271]
[1728479645165,7.0903,141.04,141.0,77.0919]
[1728479645751,7.0897,141.05,141.0,77.0919]
[1728479646158,7.0892,141.06,141.01,7.0914]
[1728479646761,7.0892,141.06,141.0,70.0]
[1728479646762,7.0892,141.06,141.02,7.091]
[1728479647142,7.0887,141.07,141.03,8.50819238]
[1728479647770,15.3673,141.09,141.04,8.50772072]
[1728479648061,22.4554,141.09,141.04,8.50772072]
[1728479648360,7.0882,141.08,141.04,7.09]
[1728479648769,22.4551,141.09,141.04,7.09]
[1728479650836,15.3673,141.09,141.03,17.7262]
[1728479651072,7.0891,141.07,141.03,17.7262]
[1728479652438,7.0891,141.07,141.04,1.41781367]
[1728479652633,15.3673,141.09,141.04,7.0898]
[1728479652865,15.3673,141.09,141.03,17.7262]
[1728479653046,7.0882,141.08,141.04,7.09]
[1728479653649,7.0882,141.08,141.04,23.902374]
[1728479656371,7.0882,141.08,141.04,30.992474]
[1728479657961,7.0873,141.1,141.05,7.0896]
[1728479658161,7.0873,141.1,141.06,7.0891]
[1728479658476,16.3242,141.13,141.1,7.0871]
[1728479658646,23.4099,141.13,141.09,24.8064]
[1728479658846,7.0866,141.11,141.07,7.0885]
[1728479660376,7.0861,141.12,141.08,7.088]
[1728479660751,23.4101,141.13,141.09,7.0876]
[1728479661551,32.34918147,141.16,141.1,87.84269]
[1728479661749,7.0841,141.16,141.12,7.086]
[1728479662169,7.0855,141.14,141.1,7.0871]
[1728479662873,19.12601703,141.17,141.09,41.495084]
[1728479663048,7.0862,141.12,141.09,41.495084]
[1728479663256,7.0858,141.13,141.09,48.582584]
[1728479668780,5.5858,141.13,141.09,48.582584]
[1728479670471,1.41671703,141.17,141.1,1.54261231]
[1728479670667,7.0842,141.16,141.12,7.0859]
[1728479670984,1.41671703,141.17,141.13,7.0856]
[1728479670985,8.50041703,141.17,141.13,7.0856]
[1728479671155,7.0837,141.17,141.13,7.0856]
[1728479671973,7.0841,141.16,141.13,7.0856]
[1728479672178,7.0841,141.16,141.12,7.086]
[1728479672571,1.41671703,141.15,141.1,0.12549]
[1728479672790,7.0855,141.14,141.1,7.21249]
[1728479673870,7.0848,141.15,141.11,7.0865]
[1728479675688,1.41671703,141.17,141.11,23.776884]
[1728479675689,7.0853,141.14,141.11,23.776884]
[1728479675879,7.0853,141.14,141.1,24.92999]
[1728479676108,7.0856,141.13,141.1,24.92999]
[1728479676283,7.0855,141.14,141.1,24.92999]
[1728479676999,33.6188,141.18,141.12,17.84029]
[1728479677000,15.9108,141.18,141.12,17.84029]
[1728479677291,17.32751703,141.18,141.11,23.776884]
[1728479677489,7.085,141.15,141.11,30.863084]
[1728479677881,7.0837,141.17,141.13,7.0854]
[1728479678269,7.0842,141.16,141.12,7.21109]
[1728479678465,7.0837,141.17,141.14,0.12549]
[1728479683469,18.03781703,141.21,141.15,23.776884]
[1728479684008,7.0829,141.19,141.16,7.084]
[1728479684308,18.03781703,141.21,141.16,7.084]
[1728479684309,7.082,141.21,141.17,30.860184]
[1728479684486,7.082,141.21,141.17,7.0833]
[1728479684671,19.11851703,141.23,141.16,0.12549]
[1728479684879,7.0831,141.18,141.15,23.902374]
[1728479686700,7.0831,141.18,141.15,30.986874]
[1728479687001,17.7041,141.21,141.15,30.986874]
[1728479687002,7.0829,141.19,141.15,30.986874]
[1728479689185,17.7041,141.21,141.14,17.7128]
[1728479689186,1.41671703,141.2,141.14,17.7128]
[1728479689380,7.0842,141.16,141.14,23.776884]
[1728479689692,7.0846,141.15,141.11,31.0888]
[1728479690003,7.0852,141.14,141.11,24.8017]
[1728479690410,7.0847,141.15,141.11,24.8017]
[1728479690581,7.0847,141.15,141.12,7.086]
[1728479690987,7.0843,141.16,141.13,23.902374]
[1728479691205,15.5162,141.19,141.13,23.902374]
[1728479691510,7.0837,141.17,141.14,7.0851]
[1728479692197,7.0837,141.17,141.13,48.701674]
[1728479694813,7.0833,141.18,141.14,8.50124113]
[1728479697319,7.0833,141.18,141.14,7.0846]
[1728479697819,7.0838,141.17,141.13,48.701774]
[1728479698122,7.0842,141.16,141.13,48.701774]
[1728479698509,7.0842,141.16,141.13,41.616274]
[1728479700402,17.7066,141.2,141.13,23.902374]
[1728479700598,7.0836,141.17,141.13,30.987574]
[1728479701107,1.41671703,141.19,141.13,41.616374]
[1728479701316,7.0842,141.16,141.13,41.616374]
[1728479701628,7.0851,141.14,141.11,0.12549]
[1728479701796,7.0851,141.14,141.1,94.8036]
[1728479701797,17.7104,141.16,141.09,7.0875]
[1728479701996,7.0862,141.12,141.1,20.0]
[1728479702613,7.0862,141.12,141.09,7.0875]
[1728479703218,19.12711703,141.16,141.09,7.0875]
[1728479703427,7.0858,141.13,141.09,24.8065]
[1728479703804,19.12711703,141.16,141.08,70.0]
[1728479704325,7.0881,141.08,141.05,7.0895]
[1728479704525,7.0881,141.08,141.03,23.9086]
[1728479704526,16.1475,141.11,141.03,17.7257]
[1728479704824,7.0887,141.07,141.03,24.8162]
[1728479705420,7.0887,141.07,141.03,17.7257]
[1728479705804,7.0887,141.07,141.03,24.8163]
[1728479706007,7.0895,141.06,141.02,77.0911]
[1728479706208,7.0895,141.06,141.0,17.7298]
[1728479706209,7.0897,141.05,141.01,27.0916]
[1728479706412,7.0902,141.04,141.0,94.8219]
[1728479706747,7.0909,141.03,141.0,70.0]
[1728479706927,17.7209,141.08,141.0,70.0]
[1728479706928,1.41671703,141.07,141.0,70.0]
[1728479707134,7.0895,141.06,141.0,70.0]
[1728479707308,7.0886,141.08,141.03,7.0903]
[1728479707507,7.0887,141.07,141.02,87.7272]
[1728479707819,7.0887,141.07,141.02,24.8183]
[1728479708008,7.0892,141.06,141.02,87.7272]
[1728479708209,7.0892,141.06,141.02,17.7272]
[1728479708410,1.41671703,141.09,141.02,23.902374]
[1728479708411,7.0897,141.05,141.02,23.902374]
[1728479708611,7.0897,141.05,141.02,0.12549]
[1728479708808,19.13671703,141.09,141.01,23.776884]
[1728479709000,7.0908,141.03,141.0,70.0]
[1728479710809,7.0912,141.02,140.97,77.0935]
[1728479711037,17.722,141.07,140.97,77.0935]
[1728479711038,6.1087,141.05,140.97,77.0935]
[1728479711219,7.0912,141.02,140.98,7.0931]
[1728479711408,7.0907,141.03,140.98,7.0931]
[1728479712223,7.0923,141.0,140.96,24.8286]
[1728479712431,1.41671703,141.03,140.95,70.0]
[1728479712731,1.41671703,141.03,140.95,87.7363]
[1728479712923,7.0915,141.02,140.97,7.0935]
[1728479713431,7.0917,141.01,140.98,23.902374]
[1728479713731,7.0925,141.0,140.96,7.094]
[1728479714322,1.41671703,141.03,140.97,0.12549]
[1728479714527,1.41671703,141.03,140.95,87.86179]
[1728479714528,7.0918,141.01,140.96,0.25098]
[1728479714833,7.0918,141.01,140.96,7.34508]
[1728479715333,23.70941703,141.0,140.92,0.8349656]
[1728479715532,7.0951,140.95,140.92,0.8349656]
[1728479718613,7.0948,140.95,140.92,0.8349656]
[1728479719623,7.0955,140.94,140.92,0.8349656]
[1728479719833,7.0948,140.95,140.93,1.41895271]
[1728479720175,7.0948,140.95,140.92,0.8349656]
[1728479720443,1.41671703,140.98,140.92,0.8349656]
[1728479720945,7.0957,140.93,140.92,0.8349656]
[1728479721445,8.51241703,140.93,140.92,0.8349656]
[1728479723559,7.0983,140.88,140.85,20.0]
[1728479724636,7.0979,140.89,140.85,20.0]
[1728479724938,19.15701703,140.93,140.85,20.0]
[1728479724939,1.41671703,140.93,140.88,7.0981]
[1728479725113,7.0961,140.93,140.87,87.7465]
[1728479725322,7.0961,140.93,140.88,7.0978]
[1728479725515,7.0963,140.92,140.88,7.0978]
[1728479725710,24.13781703,140.94,140.87,87.7465]
[1728479725922,18.64128147,140.96,140.89,87.7439]
[1728479726146,1.41671703,140.97,140.9,23.902374]
[1728479726451,7.0947,140.95,140.91,24.8376]
[1728479726823,7.0943,140.96,140.92,8.51512947]
[1728479727048,1.41671703,140.97,140.93,7.0956]
[1728479727049,7.0938,140.97,140.93,7.0956]
[1728479727350,7.0938,140.97,140.94,1.41885178]
[1728479727722,22.1939,140.98,140.94,30.997474]
[1728479727937,7.0932,140.98,140.94,30.997474]
[1728479729511,7.0928,140.99,140.95,7.0945]
[1728479729712,7.0923,141.0,140.96,7.094]
[1728479729912,17.29961703,141.02,140.96,7.094]
[1728479730118,1.41671703,141.01,140.96,7.094]
[1728479730644,7.0918,141.01,140.97,30.995974]
[1728479730818,7.0926,141.0,140.95,94.8309]
[1728479731042,1.41671703,141.01,140.95,17.7364]
[1728479731347,7.0933,140.98,140.95,17.7364]
[1728479731544,7.0933,140.98,140.95,0.12549]
[1728479731850,7.0933,140.98,140.94,7.0948]
[1728479732355,7.0943,140.96,140.93,23.902374]
[1728479732650,7.0947,140.95,140.91,7.0965]
[1728479732832,7.0939,140.97,140.92,7.0961]
[1728479733152,1.41671703,140.96,140.88,70.0]
[1728479733441,7.0963,140.92,140.88,24.8435]
[1728479733619,7.0958,140.93,140.89,7.0976]
[1728479734457,7.0948,140.95,140.91,7.0966]
[1728479734920,7.0943,140.96,140.92,8.51511209]
[1728479735326,7.0943,140.96,140.92,7.0961]
[1728479735534,7.0943,140.96,140.93,1.41894936]
[1728479735726,7.0943,140.96,140.92,7.0961]
[1728479737038,7.0947,140.95,140.91,77.0965]
[1728479737537,7.0955,140.94,140.9,24.8399]
[1728479737731,7.0948,140.95,140.91,7.0966]
[1728479737946,7.0947,140.96,140.92,7.0961]
[1728479738155,7.0928,140.99,140.95,7.0946]
[1728479738320,7.0928,140.99,140.92,70.0]
[1728479738321,1.41671703,141.01,140.94,17.7377]
[1728479738522,7.0928,140.99,140.95,30.996974]
[1728479738824,39.9095,141.02,140.96,7.0941]
[1728479738825,7.0925,141.0,140.96,7.0941]
[1728479739013,7.0927,140.99,140.95,30.996674]
[1728479739222,7.0923,141.0,140.96,7.0941]
[1728479739453,22.1812,141.02,140.95,23.902374]
[1728479739626,7.0922,141.0,140.96,24.8288]
[1728479741344,7.0922,141.0,140.97,23.902374]
[1728479741548,7.0918,141.01,140.97,30.995974]
[1728479741744,7.0907,141.03,140.99,7.0923]
[1728479741946,7.0903,141.04,141.0,7.0921]
[1728479743243,7.0903,141.04,140.99,30.994874]
[1728479743447,7.0907,141.03,140.99,30.994874]
[1728479743621,7.0903,141.04,140.99,30.994874]
[1728479743823,6.6329,141.06,140.99,23.902374]
[1728479744150,7.0901,141.05,141.0,7.0918]
[1728479744445,7.0901,141.05,141.01,7.0912]
[1728479746251,7.0893,141.06,141.02,7.21649]
[1728479746451,7.0893,141.06,141.03,1.41786721]
[1728479746633,17.44931703,141.08,141.03,7.0906]
[1728479746634,7.0887,141.07,141.03,7.0906]
[1728479746832,7.0887,141.07,141.04,1.41777335]
[1728479747337,7.0892,141.06,141.02,24.8187]
[1728479747551,7.0886,141.07,141.03,7.0905]
[1728479747854,7.0888,141.07,141.01,87.7289]
[1728479748025,7.0888,141.07,141.03,7.0905]
[1728479748453,7.0883,141.08,141.04,7.09]
[1728479749338,7.0883,141.08,141.03,24.8165]
[1728479749542,7.0883,141.08,141.04,30.866784]
[1728479749847,7.0883,141.08,141.05,1.41764756]
[1728479750232,7.0883,141.08,141.04,30.866784]
[1728479751953,1.41671703,141.07,141.01,43.776884]
[1728479752127,7.0903,141.04,141.01,23.776884]
[1728479752440,7.0903,141.04,141.0,24.8216]
[1728479753147,7.0903,141.04,141.0,94.8216]
[1728479753354,7.0898,141.05,141.01,7.0916]
[1728479753539,7.0903,141.04,141.0,24.8216]
[1728479754459,7.0907,141.03,140.99,7.0925]
[1728479754755,1.41671703,141.05,140.97,17.7332]
[1728479754952,7.0917,141.01,140.98,20.0]
[1728479755955,7.0913,141.02,140.98,27.0928]
[1728479756731,7.0927,141.0,140.96,7.0938]
[1728479756937,7.0935,140.98,140.94,24.8321]
[1728479757348,7.0938,140.97,140.94,17.7371]
[1728479758057,7.0933,140.98,140.94,24.8321]
[1728479759238,7.0928,140.99,140.95,30.871484]
[1728479759941,7.0926,141.0,140.96,7.094]
[1728479760355,7.0929,140.99,140.95,23.776884]
[1728479760545,7.0929,140.99,140.95,30.871384]
[1728479760940,7.0912,141.02,140.98,7.093]
[1728479761267,7.0907,141.03,140.99,8.51082366]
[1728479761559,7.0907,141.03,140.99,7.0925]
[1728479761798,7.0907,141.03,141.0,1.41825149]
[1728479762359,7.0903,141.04,141.0,7.0921]
[1728479763255,7.091,141.03,140.99,30.869384]
[1728479763460,7.0913,141.02,140.98,24.8256]
[1728479764350,1.41671703,141.05,140.99,23.776884]
[1728479764532,7.0905,141.04,141.0,7.0921]
[1728479764931,7.0905,141.04,141.0,8.51022387]
[1728479765128,1.41671703,141.05,140.99,23.776884]
[1728479765441,7.0907,141.03,140.99,30.869384]
[1728479769745,7.0894,141.06,141.02,7.0911]
[1728479769942,19.13691703,141.09,141.02,17.7278]
[1728479770143,19.13691703,141.09,141.0,70.12549]
[1728479770440,7.0902,141.04,141.01,23.776884]
[1728479770665,7.0893,141.06,141.02,7.0908]
[1728479771145,7.0893,141.06,141.03,1.41790618]
[1728479771345,7.0893,141.06,141.02,0.12549]
[1728479771546,7.0893,141.06,141.03,7.0906]
[1728479771744,19.13691703,141.09,141.03,7.0906]
[1728479771950,7.0888,141.07,141.03,7.0906]
[1728479772361,7.0882,141.08,141.04,7.0897]
[1728479772578,8.50371703,141.11,141.07,7.0885]
[1728479772738,7.087,141.11,141.08,1.41743831]
[1728479772933,7.0863,141.12,141.09,1.41743584]
[1728479773750,6.2951,141.14,141.09,1.41743584]
[1728479773751,7.0853,141.14,141.1,8.50436112]
[1728479773950,7.0848,141.15,141.11,7.0866]
[1728479774256,1.41671703,141.16,141.09,17.7188]
[1728479774568,7.0852,141.14,141.1,7.087]
[1728479775151,7.0861,141.12,141.08,7.0881]
[1728479775470,7.0852,141.14,141.1,7.0871]
[1728479776036,1.41671703,141.16,141.11,8.50334409]
[1728479776239,7.0843,141.16,141.11,8.50334409]
[1728479776439,7.0847,141.15,141.11,7.0863]
[1728479776663,7.0847,141.15,141.12,1.41698316]
[1728479777050,7.0847,141.15,141.11,7.0863]
[1728479778044,7.0856,141.13,141.1,17.7175]
[1728479778351,7.0856,141.13,141.09,30.864384]
[1728479778554,7.0864,141.12,141.08,30.864884]
[1728479778962,7.0864,141.12,141.08,100.864884]
[1728479779162,16.2471,141.17,141.1,23.776884]
[1728479779370,16.2471,141.17,141.1,93.776884]
[1728479779547,6.2127,141.18,141.11,17.7164]
[1728479779757,7.0837,141.17,141.13,7.0856]
[1728479780169,1.41671703,141.19,141.14,1.41674155]
[1728479780486,7.0835,141.18,141.14,7.085]
[1728479781677,7.0827,141.19,141.15,7.0846]